[Event "Rapid della Domenica"]
[Site "Chess.com"]
[Date "2020.05.10"]
[Round "1"]
[White "SanSecondoPR"]
[Black "BAKR1980"]
[Result "0-1"]
[WhiteElo "1243"]
[BlackElo "1653"]
[TimeControl "720+3"]
[EndTime "6:07:48 PDT"]
[Termination "BAKR1980 ha vinto per abbandono"]

1. e4 {[%clk 0:12:01.2]} 1... d6 {[%clk 0:11:54.8]} 2. d4 {[%clk 0:11:59.5]}
2... e5 {[%clk 0:11:49.3]} 3. dxe5 {[%clk 0:11:59.5]} 3... Nc6 {[%clk
0:11:29.3]} 4. exd6 {[%clk 0:11:59.9]} 4... Nf6 {[%clk 0:11:12.4]} 5. dxc7
{[%clk 0:11:44.6]} 5... Qxd1+ {[%clk 0:11:00.1]} 6. Kxd1 {[%clk 0:11:43]} 6...
Nxe4 {[%clk 0:10:53.7]} 7. Ke2 {[%clk 0:11:30.7]} 7... Bd6 {[%clk 0:10:48.4]} 8.
f3 {[%clk 0:11:29.3]} 8... Nd4+ {[%clk 0:10:39.5]} 9. Kd3 {[%clk 0:11:01.9]}
9... Nf2+ {[%clk 0:10:34.2]} 10. Kxd4 {[%clk 0:11:02.3]} 10... Bxc7 {[%clk
0:10:28.6]} 11. Be3 {[%clk 0:10:53.2]} 11... Bb6+ {[%clk 0:10:21.3]} 12. Kc3
{[%clk 0:10:32.5]} 12... Bxe3 {[%clk 0:10:13.2]} 13. Bb5+ {[%clk 0:10:27.2]}
13... Kd8 {[%clk 0:10:05.2]} 14. Ne2 {[%clk 0:10:20.6]} 14... Nxh1 {[%clk
0:09:56.2]} 15. Na3 {[%clk 0:10:10.5]} 15... Nf2 {[%clk 0:09:50.7]} 16. Rf1
{[%clk 0:09:54.6]} 16... a6 {[%clk 0:09:44.6]} 17. Bc4 {[%clk 0:09:50.1]} 17...
b5 {[%clk 0:09:36.5]} 18. Bxf7 {[%clk 0:09:44.4]} 18... Ra7 {[%clk 0:09:30.1]}
19. b4 {[%clk 0:09:25]} 19... Rxf7 {[%clk 0:09:17.6]} 0-1

[Event "Rapid della Domenica"]
[Site "Chess.com"]
[Date "2020.05.10"]
[Round "1"]
[White "Mrtre7"]
[Black "GB86_CHESS"]
[Result "0-1"]
[WhiteElo "1421"]
[BlackElo "1740"]
[TimeControl "720+3"]
[EndTime "6:14:48 PDT"]
[Termination "GB86_CHESS ha vinto per scaccomatto"]

1. d4 {[%clk 0:11:58.9]} 1... e6 {[%clk 0:11:57.6]} 2. c4 {[%clk 0:12:00]} 2...
b6 {[%clk 0:11:51.8]} 3. Nc3 {[%clk 0:11:57.7]} 3... Bb7 {[%clk 0:11:50.2]} 4.
e4 {[%clk 0:11:57.3]} 4... Bb4 {[%clk 0:11:50.2]} 5. Bd3 {[%clk 0:11:54.9]} 5...
f5 {[%clk 0:11:51.6]} 6. Qc2 {[%clk 0:10:44.5]} 6... Nf6 {[%clk 0:11:06.5]} 7.
Bg5 {[%clk 0:10:37.2]} 7... h6 {[%clk 0:11:04.5]} 8. Bxf6 {[%clk 0:08:26.5]}
8... Qxf6 {[%clk 0:11:03.8]} 9. Nf3 {[%clk 0:08:15.7]} 9... fxe4 {[%clk
0:10:39.2]} 10. Bxe4 {[%clk 0:08:03.6]} 10... d5 {[%clk 0:10:40.1]} 11. Bg6+
{[%clk 0:07:55.6]} 11... Kd8 {[%clk 0:10:20.5]} 12. Ne5 {[%clk 0:07:25.2]} 12...
Rf8 {[%clk 0:10:18.4]} 13. O-O {[%clk 0:07:03.7]} 13... Nd7 {[%clk 0:10:18.7]}
14. cxd5 {[%clk 0:05:20.9]} 14... Nxe5 {[%clk 0:10:08.5]} 15. dxe5 {[%clk
0:05:17.3]} 15... Qxe5 {[%clk 0:10:09.2]} 16. Rfe1 {[%clk 0:05:08.7]} 16... Qg5
{[%clk 0:10:02]} 17. Nb5 {[%clk 0:04:11.5]} 17... Bc5 {[%clk 0:09:54.2]} 18. Rf1
{[%clk 0:03:00.4]} 18... Bxd5 {[%clk 0:09:52.5]} 19. Rad1 {[%clk 0:01:52]} 19...
Qxg2# {[%clk 0:09:49]} 0-1

[Event "Rapid della Domenica"]
[Site "Chess.com"]
[Date "2020.05.10"]
[Round "1"]
[White "fisherpez"]
[Black "OMatteoWuO"]
[Result "1-0"]
[WhiteElo "1629"]
[BlackElo "1163"]
[TimeControl "720+3"]
[EndTime "6:15:10 PDT"]
[Termination "fisherpez ha vinto per abbandono"]

1. e3 {[%clk 0:12:01.4]} 1... Nf6 {[%clk 0:11:52.6]} 2. b3 {[%clk 0:12:01.4]}
2... d5 {[%clk 0:11:42.8]} 3. Bb2 {[%clk 0:12:01.2]} 3... e6 {[%clk 0:11:41.1]}
4. Nf3 {[%clk 0:12:02.9]} 4... Nc6 {[%clk 0:11:32.8]} 5. Bb5 {[%clk 0:12:04.4]}
5... Bd7 {[%clk 0:11:33.9]} 6. Bxc6 {[%clk 0:12:06.2]} 6... Bxc6 {[%clk
0:11:35.1]} 7. Ne5 {[%clk 0:12:08.7]} 7... Bd7 {[%clk 0:11:20.7]} 8. Qf3 {[%clk
0:12:10]} 8... Be7 {[%clk 0:11:18.7]} 9. h3 {[%clk 0:12:09.6]} 9... c5 {[%clk
0:10:57.8]} 10. d3 {[%clk 0:12:06.1]} 10... Qc7 {[%clk 0:10:46.4]} 11. Ng4
{[%clk 0:12:05.9]} 11... Nxg4 {[%clk 0:10:04.4]} 12. hxg4 {[%clk 0:12:05.9]}
12... f6 {[%clk 0:10:02]} 13. g5 {[%clk 0:11:56.7]} 13... O-O-O {[%clk 0:09:55]}
14. gxf6 {[%clk 0:11:51.7]} 14... gxf6 {[%clk 0:09:53.2]} 15. Nd2 {[%clk
0:11:51.1]} 15... Rhf8 {[%clk 0:09:47.7]} 16. Rxh7 {[%clk 0:11:51.2]} 16... Qd6
{[%clk 0:09:24.8]} 17. O-O-O {[%clk 0:11:50.1]} 17... e5 {[%clk 0:09:16.8]} 18.
Qh5 {[%clk 0:11:38.1]} 18... b6 {[%clk 0:08:50.8]} 19. Rh1 {[%clk 0:11:38.4]}
19... d4 {[%clk 0:08:37.2]} 20. e4 {[%clk 0:11:35.3]} 20... b5 {[%clk
0:08:18.4]} 21. f3 {[%clk 0:11:33.4]} 21... f5 {[%clk 0:07:52]} 22. Rf7 {[%clk
0:11:29.2]} 22... Rh8 {[%clk 0:07:22.4]} 23. Rh7 {[%clk 0:11:30.3]} 23... Rxh7
{[%clk 0:07:21.5]} 24. Qxh7 {[%clk 0:11:31.6]} 24... fxe4 {[%clk 0:07:22.9]} 25.
Nxe4 {[%clk 0:11:32.8]} 25... Qe6 {[%clk 0:06:36.9]} 26. Rh6 {[%clk 0:11:15.8]}
26... Qg8 {[%clk 0:05:44.4]} 27. Qxg8 {[%clk 0:11:09.1]} 27... Rxg8 {[%clk
0:05:45.2]} 28. g4 {[%clk 0:11:10.5]} 28... Kc7 {[%clk 0:05:20.2]} 29. Kb1
{[%clk 0:11:09.9]} 29... Bc6 {[%clk 0:05:15.7]} 30. Bc1 {[%clk 0:11:04.2]} 30...
Bxe4 {[%clk 0:05:16.9]} 31. dxe4 {[%clk 0:11:04.4]} 31... Rf8 {[%clk 0:05:13.4]}
32. Rh3 {[%clk 0:11:04.1]} 32... a5 {[%clk 0:05:01.2]} 33. Bd2 {[%clk
0:11:05.9]} 33... b4 {[%clk 0:05:02.7]} 34. Kc1 {[%clk 0:11:06.9]} 34... Bf6
{[%clk 0:04:57.4]} 35. Kd1 {[%clk 0:11:08.7]} 35... Kd6 {[%clk 0:04:56.9]} 36.
Ke2 {[%clk 0:11:10.6]} 36... Ke6 {[%clk 0:04:51.1]} 37. Rh6 {[%clk 0:11:10.1]}
37... Kd7 {[%clk 0:04:40.9]} 38. Kf2 {[%clk 0:10:54.6]} 38... Bg7 {[%clk
0:04:12.3]} 39. Rh7 {[%clk 0:10:54.5]} 39... Rf7 {[%clk 0:04:11]} 40. Bh6 {[%clk
0:10:45.6]} 40... Ke8 {[%clk 0:03:35.2]} 41. Rxg7 {[%clk 0:10:44.4]} 41... Rf6
{[%clk 0:03:16.8]} 42. g5 {[%clk 0:10:46.1]} 42... Rf4 {[%clk 0:03:08.5]} 43.
Ra7 {[%clk 0:10:42.9]} 1-0

[Event "Rapid della Domenica"]
[Site "Chess.com"]
[Date "2020.05.10"]
[Round "1"]
[White "fausto2p"]
[Black "laremaro"]
[Result "0-1"]
[WhiteElo "1104"]
[BlackElo "1616"]
[TimeControl "720+3"]
[EndTime "6:18:22 PDT"]
[Termination "laremaro ha vinto per abbandono"]

1. d4 {[%clk 0:11:58.6]} 1... d5 {[%clk 0:11:59.4]} 2. c4 {[%clk 0:11:59]} 2...
e5 {[%clk 0:11:58.2]} 3. dxe5 {[%clk 0:11:59.4]} 3... d4 {[%clk 0:11:59.5]} 4.
Nf3 {[%clk 0:12:00.7]} 4... Nc6 {[%clk 0:12:01.1]} 5. a3 {[%clk 0:12:01.1]} 5...
Bg4 {[%clk 0:11:56.2]} 6. Nbd2 {[%clk 0:11:46.9]} 6... Qd7 {[%clk 0:11:47.1]} 7.
h3 {[%clk 0:11:40.7]} 7... Bh5 {[%clk 0:11:46.4]} 8. b4 {[%clk 0:11:23]} 8...
Nge7 {[%clk 0:11:37.9]} 9. Nb3 {[%clk 0:11:05.4]} 9... Bxf3 {[%clk 0:11:35.1]}
10. exf3 {[%clk 0:10:47.5]} 10... O-O-O {[%clk 0:11:20]} 11. f4 {[%clk
0:10:19.8]} 11... f6 {[%clk 0:11:05]} 12. Nc5 {[%clk 0:09:56.8]} 12... Qe8
{[%clk 0:10:51.4]} 13. Be2 {[%clk 0:09:27.2]} 13... fxe5 {[%clk 0:10:50.1]} 14.
fxe5 {[%clk 0:09:05.4]} 14... Nxe5 {[%clk 0:10:46.4]} 15. Bb2 {[%clk 0:08:44.6]}
15... d3 {[%clk 0:10:39]} 16. Nxd3 {[%clk 0:08:39.3]} 16... Nxd3+ {[%clk
0:10:38.7]} 17. Bxd3 {[%clk 0:08:37]} 17... Nd5+ {[%clk 0:09:52.2]} 18. Kf1
{[%clk 0:08:12.4]} 18... Nf4 {[%clk 0:09:46.6]} 19. Qg4+ {[%clk 0:08:10.5]}
19... Kb8 {[%clk 0:09:22.7]} 20. Qxf4 {[%clk 0:07:56.7]} 20... Rxd3 {[%clk
0:09:19.7]} 21. g3 {[%clk 0:07:47.6]} 21... Bd6 {[%clk 0:09:09]} 22. Qg5 {[%clk
0:07:06.4]} 22... Qe4 {[%clk 0:08:12.6]} 23. Rg1 {[%clk 0:06:55.7]} 23... Re8
{[%clk 0:07:59]} 24. Qc1 {[%clk 0:06:04.3]} 24... Qe2+ {[%clk 0:07:53.5]} 25.
Kg2 {[%clk 0:06:00.4]} 25... Qf3+ {[%clk 0:07:55.1]} 26. Kh2 {[%clk 0:05:56.6]}
26... Qxf2+ {[%clk 0:07:46.3]} 27. Rg2 {[%clk 0:05:50.2]} 27... Bxg3+ {[%clk
0:07:35.2]} 28. Kh1 {[%clk 0:05:42]} 28... Qf3 {[%clk 0:07:33]} 29. Qf1 {[%clk
0:04:26]} 29... Qh5 {[%clk 0:06:47.2]} 30. Re2 {[%clk 0:03:24.5]} 30... Qxe2
{[%clk 0:06:35.8]} 31. Qxe2 {[%clk 0:03:12.8]} 31... Rxe2 {[%clk 0:06:34.5]} 0-1

[Event "Rapid della Domenica"]
[Site "Chess.com"]
[Date "2020.05.10"]
[Round "1"]
[White "Carbon"]
[Black "crippo"]
[Result "1-0"]
[WhiteElo "1751"]
[BlackElo "1484"]
[TimeControl "720+3"]
[EndTime "6:19:01 PDT"]
[Termination "Carbon ha vinto per scaccomatto"]

1. e4 {[%clk 0:12:02.1]} 1... e5 {[%clk 0:12:01]} 2. Nf3 {[%clk 0:12:03.9]} 2...
Nc6 {[%clk 0:12:02]} 3. Bc4 {[%clk 0:12:05.5]} 3... d6 {[%clk 0:12:03.1]} 4. c3
{[%clk 0:12:01.5]} 4... Be7 {[%clk 0:12:04.8]} 5. d4 {[%clk 0:12:02.8]} 5...
exd4 {[%clk 0:12:02.5]} 6. cxd4 {[%clk 0:12:04.7]} 6... Nf6 {[%clk 0:12:04.3]}
7. Nc3 {[%clk 0:12:05.6]} 7... O-O {[%clk 0:12:04.9]} 8. O-O {[%clk 0:12:07.4]}
8... Bg4 {[%clk 0:12:04.3]} 9. Be3 {[%clk 0:12:01]} 9... Nd7 {[%clk 0:11:57.8]}
10. h3 {[%clk 0:11:59.5]} 10... Bh5 {[%clk 0:11:59.1]} 11. Nd5 {[%clk
0:11:53.2]} 11... Nb6 {[%clk 0:11:57.9]} 12. Nxe7+ {[%clk 0:11:45.3]} 12... Qxe7
{[%clk 0:11:53.4]} 13. Bd3 {[%clk 0:11:46.3]} 13... Nb4 {[%clk 0:11:46.2]} 14.
Bb1 {[%clk 0:11:47]} 14... Nc4 {[%clk 0:11:39]} 15. a3 {[%clk 0:11:39.5]} 15...
Nc6 {[%clk 0:10:49.6]} 16. Qe2 {[%clk 0:11:21.1]} 16... Nb6 {[%clk 0:10:45.2]}
17. Bd3 {[%clk 0:10:44.6]} 17... f5 {[%clk 0:10:33.7]} 18. exf5 {[%clk
0:10:32.7]} 18... Nxd4 {[%clk 0:10:32.7]} 19. Bxd4 {[%clk 0:10:24.8]} 19... Qd7
{[%clk 0:10:32.8]} 20. Qe6+ {[%clk 0:10:01.3]} 20... Qxe6 {[%clk 0:10:31.3]} 21.
fxe6 {[%clk 0:10:03]} 21... Bxf3 {[%clk 0:10:32.9]} 22. gxf3 {[%clk 0:10:02]}
22... Rxf3 {[%clk 0:10:33.8]} 23. Bxb6 {[%clk 0:09:50.5]} 23... axb6 {[%clk
0:10:33.5]} 24. Bc4 {[%clk 0:09:49.3]} 24... Kf8 {[%clk 0:10:25.4]} 25. Kg2
{[%clk 0:09:48.1]} 25... Rf4 {[%clk 0:10:25.1]} 26. Rac1 {[%clk 0:09:47.3]}
26... c6 {[%clk 0:10:23.2]} 27. Rfe1 {[%clk 0:09:41.7]} 27... Ke7 {[%clk
0:10:24.7]} 28. Re3 {[%clk 0:09:23.2]} 28... Ra4 {[%clk 0:10:21.7]} 29. Bb3
{[%clk 0:09:14.8]} 29... Rad4 {[%clk 0:10:19]} 30. Rc2 {[%clk 0:08:42.4]} 30...
d5 {[%clk 0:10:16.7]} 31. Rce2 {[%clk 0:08:32.5]} 31... Rf6 {[%clk 0:10:17.9]}
32. Bc2 {[%clk 0:08:33.4]} 32... h6 {[%clk 0:10:04]} 33. Rg3 {[%clk 0:08:30.3]}
33... g5 {[%clk 0:10:03.5]} 34. Rge3 {[%clk 0:08:16.3]} 34... Rdf4 {[%clk
0:09:47.8]} 35. Bh7 {[%clk 0:08:12.5]} 35... g4 {[%clk 0:09:43]} 36. h4 {[%clk
0:07:59.6]} 36... h5 {[%clk 0:09:39.8]} 37. Bg8 {[%clk 0:07:57.1]} 37... b5
{[%clk 0:09:15.8]} 38. Bf7 {[%clk 0:07:55.8]} 38... Rf3 {[%clk 0:09:10.2]} 39.
Bxh5 {[%clk 0:07:30.6]} 39... Rh3 {[%clk 0:09:01.8]} 40. Bxg4 {[%clk 0:07:27.9]}
40... Rxh4 {[%clk 0:09:03.6]} 41. f3 {[%clk 0:07:25.6]} 41... Rfh6 {[%clk
0:09:03.5]} 42. Kg3 {[%clk 0:07:19]} 42... Rh1 {[%clk 0:09:02.6]} 43. Re5 {[%clk
0:07:08.3]} 43... Rg1+ {[%clk 0:08:58.7]} 44. Kf2 {[%clk 0:07:07.7]} 44... Rhh1
{[%clk 0:08:57.3]} 45. Rf5 {[%clk 0:06:59.2]} 45... Rf1+ {[%clk 0:08:51.3]} 46.
Ke3 {[%clk 0:06:58.9]} 46... Rh7 {[%clk 0:08:39.2]} 47. Kf4 {[%clk 0:06:39.2]}
47... Rd1 {[%clk 0:08:18.2]} 48. Bh5 {[%clk 0:06:10.4]} 48... Kd6 {[%clk
0:08:12.9]} 49. Rf7 {[%clk 0:05:39.7]} 49... Rd4+ {[%clk 0:07:48.9]} 50. Kg3
{[%clk 0:05:33.7]} 50... Rxh5 {[%clk 0:07:46.6]} 51. e7 {[%clk 0:05:29.9]} 51...
Rg5+ {[%clk 0:07:19]} 52. Kf2 {[%clk 0:05:23.3]} 52... Rh4 {[%clk 0:07:13.8]}
53. e8=Q {[%clk 0:05:20.8]} 53... Rh2+ {[%clk 0:07:14.5]} 54. Ke1 {[%clk
0:05:10.4]} 54... Rxe2+ {[%clk 0:06:56.6]} 55. Qxe2 {[%clk 0:05:07]} 55... Re5
{[%clk 0:06:42.6]} 56. Rd7+ {[%clk 0:05:05]} 56... Ke6 {[%clk 0:06:42.8]} 57.
Re7+ {[%clk 0:05:04]} 57... Kd6 {[%clk 0:06:42.9]} 58. Qxe5+ {[%clk 0:05:05.4]}
58... Kc5 {[%clk 0:06:44.7]} 59. b4+ {[%clk 0:04:58.7]} 59... Kb6 {[%clk
0:06:45.9]} 60. Qc7+ {[%clk 0:04:58.1]} 60... Ka6 {[%clk 0:06:46.9]} 61. Qxb7#
{[%clk 0:04:59.2]} 1-0

[Event "Rapid della Domenica"]
[Site "Chess.com"]
[Date "2020.05.10"]
[Round "1"]
[White "pedrak"]
[Black "sirmale49"]
[Result "1-0"]
[WhiteElo "1705"]
[BlackElo "1372"]
[TimeControl "720+3"]
[EndTime "6:21:12 PDT"]
[Termination "pedrak ha vinto per tempo"]

1. d4 {[%clk 0:11:59.5]} 1... d5 {[%clk 0:11:52]} 2. Nf3 {[%clk 0:11:59.7]} 2...
Bf5 {[%clk 0:11:50.2]} 3. Bf4 {[%clk 0:11:57.9]} 3... Nf6 {[%clk 0:11:49]} 4. e3
{[%clk 0:11:58.7]} 4... Nc6 {[%clk 0:11:48.5]} 5. c3 {[%clk 0:11:59]} 5... e6
{[%clk 0:11:45.6]} 6. Bd3 {[%clk 0:11:49.8]} 6... Ne4 {[%clk 0:11:33.9]} 7. Qc2
{[%clk 0:11:47.8]} 7... Bd6 {[%clk 0:11:23.2]} 8. Bg3 {[%clk 0:11:46.7]} 8...
O-O {[%clk 0:11:19.1]} 9. O-O {[%clk 0:11:39.1]} 9... Nxg3 {[%clk 0:10:33]} 10.
hxg3 {[%clk 0:11:24.3]} 10... Bxd3 {[%clk 0:10:33.1]} 11. Qxd3 {[%clk
0:11:25.5]} 11... f6 {[%clk 0:10:22.9]} 12. Nbd2 {[%clk 0:11:17.1]} 12... e5
{[%clk 0:10:21]} 13. e4 {[%clk 0:11:18.2]} 13... Ne7 {[%clk 0:10:08.9]} 14. dxe5
{[%clk 0:11:11.7]} 14... fxe5 {[%clk 0:10:05.9]} 15. exd5 {[%clk 0:11:06.8]}
15... Nf5 {[%clk 0:09:53.6]} 16. Ne4 {[%clk 0:10:40.9]} 16... Qe8 {[%clk
0:09:22.7]} 17. Rad1 {[%clk 0:10:22.1]} 17... Rd8 {[%clk 0:08:59]} 18. Nfg5
{[%clk 0:09:47.9]} 18... Rd7 {[%clk 0:08:05.9]} 19. Ne6 {[%clk 0:09:38.3]} 19...
Rff7 {[%clk 0:08:01.2]} 20. N4g5 {[%clk 0:09:36.1]} 20... Rf6 {[%clk 0:07:38.4]}
21. Ne4 {[%clk 0:09:20.7]} 21... Rg6 {[%clk 0:07:11]} 22. c4 {[%clk 0:09:03.2]}
22... Rxe6 {[%clk 0:06:45.4]} 23. dxe6 {[%clk 0:09:00.5]} 23... Qxe6 {[%clk
0:06:42.6]} 24. c5 {[%clk 0:08:51.2]} 24... Nd4 {[%clk 0:04:06.9]} 25. cxd6
{[%clk 0:08:47.1]} 25... cxd6 {[%clk 0:04:03.4]} 26. Ng5 {[%clk 0:08:31.9]}
26... Qf6 {[%clk 0:03:51.2]} 27. Qxh7+ {[%clk 0:08:19.8]} 27... Kf8 {[%clk
0:03:43.5]} 28. Qh8+ {[%clk 0:08:00]} 28... Ke7 {[%clk 0:03:39.5]} 29. Ne4
{[%clk 0:07:28.1]} 29... Qg6 {[%clk 0:03:27.3]} 30. Qh4+ {[%clk 0:07:22.2]}
30... Ke8 {[%clk 0:03:17.7]} 31. Nc3 {[%clk 0:07:20.7]} 31... Nf5 {[%clk
0:02:22.6]} 32. Qc4 {[%clk 0:07:12.6]} 32... Ne7 {[%clk 0:01:56.4]} 33. Rfe1
{[%clk 0:07:08.5]} 33... Nc6 {[%clk 0:00:43]} 34. Qg8+ {[%clk 0:07:00.8]} 1-0

[Event "Rapid della Domenica"]
[Site "Chess.com"]
[Date "2020.05.10"]
[Round "1"]
[White "Ollarov"]
[Black "ferrariand"]
[Result "1-0"]
[WhiteElo "2030"]
[BlackElo "1553"]
[TimeControl "720+3"]
[EndTime "6:21:27 PDT"]
[Termination "Ollarov ha vinto per abbandono"]

1. e4 {[%clk 0:12:00.1]} 1... e5 {[%clk 0:12:00.8]} 2. Nf3 {[%clk 0:11:58.6]}
2... Nc6 {[%clk 0:12:00.3]} 3. Bb5 {[%clk 0:12:00.3]} 3... Nf6 {[%clk
0:12:00.6]} 4. O-O {[%clk 0:12:01.6]} 4... Nxe4 {[%clk 0:11:58.8]} 5. d4 {[%clk
0:11:58.1]} 5... Nd6 {[%clk 0:11:58.1]} 6. Bxc6 {[%clk 0:12:00.1]} 6... dxc6
{[%clk 0:11:58.5]} 7. dxe5 {[%clk 0:12:02.6]} 7... Nf5 {[%clk 0:11:59.7]} 8.
Qxd8+ {[%clk 0:12:05.2]} 8... Kxd8 {[%clk 0:12:00.6]} 9. h3 {[%clk 0:12:06.3]}
9... Bd7 {[%clk 0:11:32.7]} 10. Nbd2 {[%clk 0:11:03]} 10... h6 {[%clk
0:11:32.7]} 11. Ne4 {[%clk 0:10:58.6]} 11... Be7 {[%clk 0:11:12.3]} 12. b3
{[%clk 0:10:48.4]} 12... Ke8 {[%clk 0:10:40.8]} 13. Bb2 {[%clk 0:10:48.6]} 13...
Rd8 {[%clk 0:10:04.3]} 14. Rad1 {[%clk 0:10:38.3]} 14... Be6 {[%clk 0:10:00.6]}
15. c4 {[%clk 0:10:29.8]} 15... b6 {[%clk 0:09:32.6]} 16. Nd4 {[%clk 0:10:19.8]}
16... Nxd4 {[%clk 0:09:26.8]} 17. Bxd4 {[%clk 0:10:19.2]} 17... Rd7 {[%clk
0:08:34.9]} 18. f4 {[%clk 0:10:16.8]} 18... f6 {[%clk 0:08:24.1]} 19. f5 {[%clk
0:10:14]} 19... fxe5 {[%clk 0:07:58.4]} 20. fxe6 {[%clk 0:10:01.6]} 20... Rxd4
{[%clk 0:07:57.3]} 21. Rxd4 {[%clk 0:08:37.1]} 21... exd4 {[%clk 0:07:58.1]} 22.
Rf7 {[%clk 0:08:34.8]} 22... g5 {[%clk 0:07:05.7]} 23. Ng3 {[%clk 0:08:28.9]}
23... Rf8 {[%clk 0:06:35.6]} 24. Rxf8+ {[%clk 0:08:02.5]} 24... Bxf8 {[%clk
0:06:28.8]} 25. Nf5 {[%clk 0:08:02]} 25... c5 {[%clk 0:06:26.9]} 26. g4 {[%clk
0:07:57.5]} 26... a6 {[%clk 0:05:52.1]} 27. Kf2 {[%clk 0:07:34]} 27... b5 {[%clk
0:05:52.1]} 28. cxb5 {[%clk 0:07:29.3]} 28... axb5 {[%clk 0:05:53.1]} 29. Ke2
{[%clk 0:07:29]} 29... Bd6 {[%clk 0:05:02.5]} 30. Nxd6+ {[%clk 0:06:32.8]} 30...
cxd6 {[%clk 0:05:02.7]} 31. a4 {[%clk 0:06:34.9]} 31... c4 {[%clk 0:04:55.2]}
32. a5 {[%clk 0:05:52.2]} 32... cxb3 {[%clk 0:04:52.4]} 33. Kd3 {[%clk
0:05:53.9]} 33... b4 {[%clk 0:01:44.8]} 34. a6 {[%clk 0:05:50]} 34... b2 {[%clk
0:01:45.8]} 35. Kc2 {[%clk 0:05:51.3]} 35... b3+ {[%clk 0:01:01.8]} 36. Kxb2
{[%clk 0:05:52.6]} 36... d3 {[%clk 0:01:02.6]} 37. Kxb3 {[%clk 0:05:53.6]} 37...
d2 {[%clk 0:01:02.8]} 38. Kc2 {[%clk 0:05:55.4]} 1-0

[Event "Rapid della Domenica"]
[Site "Chess.com"]
[Date "2020.05.10"]
[Round "1"]
[White "sergiodone"]
[Black "Simo2005"]
[Result "0-1"]
[WhiteElo "1496"]
[BlackElo "1782"]
[TimeControl "720+3"]
[EndTime "6:21:57 PDT"]
[Termination "Simo2005 ha vinto per abbandono"]

1. e4 {[%clk 0:11:57.8]} 1... d6 {[%clk 0:11:56.1]} 2. d4 {[%clk 0:11:56.9]}
2... Nf6 {[%clk 0:11:53.9]} 3. Nd2 {[%clk 0:11:57.1]} 3... g6 {[%clk 0:11:50.9]}
4. Bd3 {[%clk 0:11:56.2]} 4... Bg7 {[%clk 0:11:48.3]} 5. h3 {[%clk 0:11:56.5]}
5... O-O {[%clk 0:11:40.5]} 6. Ngf3 {[%clk 0:11:58.1]} 6... c6 {[%clk
0:11:09.1]} 7. c3 {[%clk 0:11:59.6]} 7... Nbd7 {[%clk 0:11:00.3]} 8. O-O {[%clk
0:12:00.7]} 8... Nb6 {[%clk 0:10:54.7]} 9. Re1 {[%clk 0:11:56]} 9... c5 {[%clk
0:10:49.7]} 10. d5 {[%clk 0:11:49.6]} 10... Re8 {[%clk 0:10:08.9]} 11. c4 {[%clk
0:11:44.8]} 11... Bd7 {[%clk 0:09:09.9]} 12. Qc2 {[%clk 0:11:40.1]} 12... Qc8
{[%clk 0:08:38.5]} 13. Bf1 {[%clk 0:11:40.7]} 13... e6 {[%clk 0:08:05.5]} 14.
Rb1 {[%clk 0:11:29.2]} 14... exd5 {[%clk 0:07:55.8]} 15. cxd5 {[%clk 0:11:30.9]}
15... Qc7 {[%clk 0:07:16.7]} 16. b3 {[%clk 0:11:32.3]} 16... Re7 {[%clk
0:07:10.4]} 17. Bb2 {[%clk 0:11:33.7]} 17... Rae8 {[%clk 0:07:07.3]} 18. Bd3
{[%clk 0:10:49.3]} 18... Nh5 {[%clk 0:06:27.7]} 19. Bxg7 {[%clk 0:10:47.8]}
19... Kxg7 {[%clk 0:06:25.2]} 20. Bf1 {[%clk 0:10:29.2]} 20... f5 {[%clk
0:05:44.4]} 21. Qc3+ {[%clk 0:10:29.2]} 21... Kg8 {[%clk 0:05:37.5]} 22. Ng5
{[%clk 0:10:20.9]} 22... fxe4 {[%clk 0:05:16.4]} 23. Ne6 {[%clk 0:10:18.9]}
23... Bxe6 {[%clk 0:05:09.8]} 24. dxe6 {[%clk 0:10:20.5]} 24... Rxe6 {[%clk
0:05:06]} 25. Qe3 {[%clk 0:10:04.3]} 25... Nd5 {[%clk 0:04:39.7]} 26. Qg5 {[%clk
0:09:06.3]} 26... Qc6 {[%clk 0:04:11.5]} 27. Bc4 {[%clk 0:09:02.5]} 27... Re5
{[%clk 0:04:02.9]} 28. Qg4 {[%clk 0:08:44.2]} 28... b5 {[%clk 0:03:56.1]} 29.
Bxd5+ {[%clk 0:08:36.8]} 29... Qxd5 {[%clk 0:03:51.6]} 30. Qd7 {[%clk
0:08:32.5]} 30... Qf7 {[%clk 0:03:44.7]} 31. Qxf7+ {[%clk 0:08:31.7]} 31... Kxf7
{[%clk 0:03:44]} 32. g3 {[%clk 0:08:21.1]} 32... e3 {[%clk 0:03:40.4]} 33. fxe3
{[%clk 0:08:16.8]} 33... Rxe3 {[%clk 0:03:39.9]} 34. Rf1+ {[%clk 0:08:06.5]}
34... Kg7 {[%clk 0:03:37.1]} 35. g4 {[%clk 0:07:40.6]} 35... Rg3+ {[%clk
0:03:26.9]} 36. Kf2 {[%clk 0:07:30.2]} 36... Rf8+ {[%clk 0:03:15.4]} 37. Ke2
{[%clk 0:07:15.2]} 37... Rxf1 {[%clk 0:03:09.6]} 38. Rxf1 {[%clk 0:07:14]} 38...
Nf6 {[%clk 0:03:01.2]} 39. Rf3 {[%clk 0:07:10.8]} 39... Rxf3 {[%clk 0:02:55.3]}
40. Kxf3 {[%clk 0:07:06.5]} 40... Kf7 {[%clk 0:02:51.5]} 41. Ne4 {[%clk
0:06:53.6]} 41... Nxe4 {[%clk 0:02:48.8]} 42. Kxe4 {[%clk 0:06:54.8]} 42... Ke6
{[%clk 0:02:49.9]} 43. h4 {[%clk 0:06:53.6]} 43... c4 {[%clk 0:02:41]} 44. Kd4
{[%clk 0:06:43.2]} 44... cxb3 {[%clk 0:02:36.9]} 45. axb3 {[%clk 0:06:43.7]}
45... a5 {[%clk 0:02:31.9]} 46. Ke4 {[%clk 0:06:28.4]} 46... a4 {[%clk
0:02:29.5]} 47. bxa4 {[%clk 0:06:28.9]} 47... bxa4 {[%clk 0:02:29.1]} 48. Kd4
{[%clk 0:06:30.5]} 48... a3 {[%clk 0:02:27]} 49. Kc3 {[%clk 0:06:32.2]} 49...
Ke5 {[%clk 0:02:24.8]} 50. Kb3 {[%clk 0:06:25]} 50... Kf4 {[%clk 0:02:22.5]} 51.
h5 {[%clk 0:06:25.6]} 51... gxh5 {[%clk 0:02:20]} 52. gxh5 {[%clk 0:06:26.8]}
52... Kg5 {[%clk 0:02:16.5]} 53. Kxa3 {[%clk 0:06:27.5]} 53... Kxh5 {[%clk
0:02:16.9]} 54. Kb3 {[%clk 0:06:29.5]} 54... Kg4 {[%clk 0:02:14.7]} 55. Kc3
{[%clk 0:06:31.3]} 55... h5 {[%clk 0:02:12.5]} 56. Kd4 {[%clk 0:06:32.4]} 56...
Kg3 {[%clk 0:02:09.3]} 57. Kd5 {[%clk 0:06:34.2]} 57... h4 {[%clk 0:02:08.5]}
58. Kxd6 {[%clk 0:06:35.5]} 58... h3 {[%clk 0:02:07.3]} 59. Ke5 {[%clk
0:06:36.8]} 0-1